fUSD/lending_fUSD_20250120
["ID","MTS","AMOUNT","RATE_DAILY","PERIOD"]
[349691655,1737377484236,-564.33,0.00021643,2]
[349691656,1737377484246,-500.0,0.00021643,2]
[349691657,1737377484255,-686.68,0.00021643,2]
[349691658,1737377484264,-264.82577769,0.00021643,2]
[349691659,1737377484274,-500.0,0.00021643,2]
[349691660,1737377484287,-500.0,0.00021643,2]
[349691661,1737377484296,-500.0,0.00021643,2]
[349691662,1737377484305,-500.0,0.00021643,2]
[349691663,1737377484314,-500.0,0.00021643,2]
[349691664,1737377484324,-837.57,0.00021643,2]
[349691665,1737377484333,-500.0,0.00021643,2]
[349691666,1737377484344,-500.0,0.00021643,2]
[349691667,1737377484353,-500.0,0.00021643,2]
[349691668,1737377484363,-895.09,0.00021643,2]
[349691669,1737377484373,-1166.48,0.00021643,2]
[349691670,1737377484383,-992.96,0.00021643,2]
[349691671,1737377484392,-500.0,0.00021643,2]
[349691672,1737377484402,-1201.46,0.00021643,2]
[349691673,1737377484412,-500.0,0.00021643,2]
[349691674,1737377484422,-500.0,0.00021643,2]
[349691675,1737377484431,-533.19,0.00021643,2]
[349691676,1737377484441,-500.0,0.00021643,2]
[349691677,1737377484452,-500.0,0.00021643,2]
[349691678,1737377484462,-500.0,0.00021643,2]
[349691679,1737377484471,-500.0,0.00021643,2]
[349691680,1737377484480,-1289.76,0.00021643,2]
[349691681,1737377484490,-743.97,0.00021643,2]
[349691682,1737377484499,-500.0,0.00021643,2]
[349691683,1737377484508,-500.0,0.00021643,2]
[349691684,1737377484517,-500.0,0.00021643,2]
[349691685,1737377484526,-771.55,0.00021643,2]
[349691686,1737377484536,-1230.0,0.00021643,2]
[349691687,1737377484546,-500.0,0.00021643,2]
[349691688,1737377484555,-500.0,0.00021643,2]
[349691689,1737377484564,-500.0,0.00021643,2]
[349691690,1737377484574,-500.0,0.00021643,2]
[349691691,1737377484584,-500.0,0.00021643,2]
[349691692,1737377484593,-500.0,0.00021643,2]
[349691693,1737377484602,-500.0,0.00021643,2]
[349691694,1737377484611,-500.0,0.00021643,2]
[349691695,1737377484620,-500.0,0.00021643,2]
[349691696,1737377484630,-500.0,0.00021643,2]
[349691697,1737377484640,-500.0,0.00021643,2]
[349691698,1737377484649,-1612.66,0.00021643,2]
[349691699,1737377484659,-161.20220306,0.00021643,2]
[349691700,1737377484668,-151.0,0.00021643,2]
[349691701,1737377484677,-536.54,0.00021643,2]
[349691702,1737377484687,-151.0,0.00021643,2]
[349691703,1737377484696,-3644.75,0.00021643,2]
[349691704,1737377484706,-154.051847,0.00021643,2]
[349691705,1737377484715,-151.0,0.00021643,2]
[349691706,1737377484725,-151.0,0.00021643,2]
[349691707,1737377484734,-500.0,0.00021643,2]
[349691708,1737377484743,-500.0,0.00021643,2]
[349691709,1737377484753,-626.19,0.00021643,2]
[349691710,1737377484763,-500.0,0.00021643,2]
[349691711,1737377484772,-756.469785,0.00021643,2]
[349691712,1737377484783,-151.0,0.00021643,2]
[349691713,1737377484793,-500.0,0.00021643,2]
[349691714,1737377484802,-500.0,0.00021643,2]
[349691715,1737377484811,-1134.53,0.00021643,2]
[349691716,1737377484820,-5822.0,0.00021643,2]
[349691717,1737377484831,-732.04,0.00021643,2]
[349691718,1737377484841,-1092.62,0.00021643,2]
[349691719,1737377484851,-923.97,0.00021643,2]
[349691720,1737377484861,-970.989995,0.00021643,2]
[349691721,1737377484870,-151.0,0.00021643,2]
[349691722,1737377484880,-1139.04,0.00021643,2]
[349691723,1737377484889,-1401.76,0.00021643,2]
[349691724,1737377484898,-500.0,0.00021643,2]
[349691725,1737377484908,-500.0,0.00021643,2]
[349691726,1737377484917,-2199.52,0.00021643,2]
[349691727,1737377484927,-1107.27,0.00021643,2]
[349691728,1737377484936,-300.97386254,0.00021643,2]
[349691729,1737377484946,-500.0,0.00021643,2]
[349691730,1737377484957,-1073.92,0.00021643,2]
[349691731,1737377484968,-574.83,0.00021643,2]
[349691732,1737377484978,-500.0,0.00021643,2]
[349691733,1737377484989,-3230.06,0.00021643,2]
[349691734,1737377484998,-500.0,0.00021643,2]
[349691735,1737377485009,-952.22,0.00021643,2]
[349691736,1737377485019,-582.05,0.00021643,2]
[349691737,1737377485031,-3658.7,0.00021643,2]
[349691738,1737377485040,-1103.21,0.00021643,2]
[349691739,1737377485049,-1237.78,0.00021643,2]
[349691740,1737377485059,-500.0,0.00021643,2]
[349691741,1737377485068,-993.94,0.00021643,2]
[349691742,1737377485077,-1503.85,0.00021643,2]
[349691743,1737377485088,-1228.19,0.00021643,2]
[349691744,1737377485098,-639.92,0.00021643,2]
[349691745,1737377485108,-1377.98,0.00021643,2]
[349691746,1737377485118,-500.0,0.00021643,2]
[349691747,1737377485128,-530.1,0.00021643,2]
[349691748,1737377485138,-500.0,0.00021643,2]
[349691749,1737377485148,-1560.84,0.00021643,2]
[349691750,1737377485285,-500.0,0.00021643,2]
[349691751,1737377485296,-752.57,0.00021643,2]
[349691752,1737377485306,-1797.36,0.00021643,2]
[349691753,1737377485315,-3077.66,0.00021643,2]
[349691754,1737377485325,-876.3,0.00021643,2]
[349691755,1737377485334,-714.91,0.00021643,2]
[349691756,1737377485344,-1303.67,0.00021643,2]
[349691757,1737377485353,-876.98,0.00021643,2]
[349691758,1737377485363,-2597.81,0.00021643,2]
[349691759,1737377485372,-1827.08,0.00021643,2]
[349691760,1737377485381,-1615.3,0.00021643,2]
[349691761,1737377485391,-500.0,0.00021643,2]
[349691762,1737377485400,-2483.31,0.00021643,2]
[349691763,1737377485410,-2780.47,0.00021643,2]
[349691764,1737377485419,-500.0,0.00021643,2]
[349691765,1737377485429,-3105.24,0.00021643,2]
[349691766,1737377485438,-1130.17,0.00021643,2]
[349691767,1737377485447,-1288.7,0.00021643,2]
[349691768,1737377485457,-647.49,0.00021643,2]
[349691769,1737377485466,-3353.58,0.00021643,2]
[349691770,1737377485475,-1811.0,0.00021643,2]
[349691771,1737377485485,-1109.6,0.00021643,2]
[349691772,1737377485495,-581.29403618,0.00021643,2]
[349691773,1737377485504,-591.66,0.00021643,2]
[349691774,1737377485514,-751.49,0.00021643,2]
[349691775,1737377485523,-944.91,0.00021643,2]
[349691776,1737377485535,-500.0,0.00021643,2]
[349691777,1737377485545,-899.05,0.00021643,2]
[349691778,1737377485555,-3103.59,0.00021643,2]
[349691779,1737377485564,-1871.8,0.00021643,2]
[349691780,1737377485575,-1086.25,0.00021643,2]
[349691781,1737377485585,-2312.31,0.00021643,2]
[349691782,1737377485595,-3725.5,0.00021643,2]
[349691783,1737377485605,-500.0,0.00021643,2]
[349691784,1737377485615,-1721.32,0.00021643,2]
[349691785,1737377485625,-3500.19,0.00021643,2]
[349691786,1737377485635,-1374.5,0.00021643,2]
[349691787,1737377485645,-500.0,0.00021643,2]
[349691788,1737377485655,-1285.87,0.00021643,2]
[349691789,1737377485666,-1008.2,0.00021643,2]
[349691790,1737377485677,-284.79929659,0.00021643,2]
[349691791,1737377485686,-500.0,0.00021643,2]
[349691792,1737377485697,-572.39,0.00021643,2]
[349691793,1737377485707,-1238.99,0.00021643,2]
[349691794,1737377485717,-500.0,0.00021643,2]
[349691795,1737377485727,-500.0,0.00021643,2]
[349691796,1737377485737,-500.0,0.00021643,2]
[349691797,1737377485747,-4448.38,0.00021643,2]
[349691798,1737377485757,-500.0,0.00021643,2]
[349691799,1737377485767,-500.0,0.00021643,2]
[349691800,1737377485776,-1222.11,0.00021643,2]
[349691801,1737377485787,-936.38,0.00021643,2]
[349691802,1737377485798,-500.0,0.00021643,2]
[349691803,1737377485807,-1024.64,0.00021643,2]
[349691804,1737377485819,-500.0,0.00021643,2]
[349691805,1737377485832,-4455.07,0.00021643,2]
[349691806,1737377485842,-634.84,0.00021643,2]
[349691807,1737377485852,-500.0,0.00021643,2]
[349691808,1737377485863,-500.0,0.00021643,2]
[349691809,1737377485873,-500.0,0.00021643,2]
[349691810,1737377485883,-1718.2,0.00021643,2]
[349691811,1737377485893,-1517.42,0.00021643,2]
[349691812,1737377485903,-500.0,0.00021643,2]
[349691813,1737377485913,-500.0,0.00021643,2]
[349691814,1737377485922,-500.0,0.00021643,2]
[349691815,1737377485931,-881.03,0.00021643,2]
[349691816,1737377485942,-500.0,0.00021643,2]
[349691817,1737377485952,-500.0,0.00021668,2]
[349691818,1737377485963,-500.0,0.00021668,2]
[349691819,1737377485972,-500.0,0.00021668,2]
[349691820,1737377485982,-500.0,0.00021668,2]
[349691821,1737377485992,-500.0,0.00021668,2]
[349691822,1737377486001,-500.0,0.00021668,2]
[349691823,1737377486010,-500.0,0.00021668,2]
[349691824,1737377486023,-500.0,0.00021668,2]
[349691825,1737377486034,-500.0,0.00021668,2]
[349691826,1737377486044,-500.0,0.00021668,2]
[349691827,1737377486053,-500.0,0.00021668,2]
[349691828,1737377486063,-501.78,0.00021668,2]
[349691829,1737377486074,-500.0,0.00021668,2]
[349691830,1737377486083,-500.0,0.00021668,2]
[349691831,1737377486093,-500.0,0.00021668,2]
[349691832,1737377486104,-500.0,0.00021668,2]
[349691833,1737377486113,-500.0,0.00021668,2]
[349691834,1737377486123,-177.09,0.00021675,2]
[349691835,1737377486133,-150.0,0.00021676,4]
[349691836,1737377486144,-150.0,0.00021696,4]
[349691837,1737377486155,-500.0,0.000217,7]
[349691838,1737377486164,-23331.3529,0.000217,2]
[349691839,1737377486174,-500.0,0.00021723,2]
[349691840,1737377486184,-500.0,0.00021723,2]
[349691841,1737377486194,-500.0,0.00021723,2]
[349691842,1737377486204,-505.86,0.00021723,2]
[349691843,1737377486213,-725.93,0.00021723,2]
[349691844,1737377486223,-1112.19,0.00021723,2]
[349691845,1737377486232,-500.0,0.00021723,2]
[349691846,1737377486242,-2796.22,0.00021723,2]
[349691847,1737377486251,-500.0,0.00021723,2]
[349691848,1737377486261,-159.94222368,0.00021723,2]
[349691849,1737377486271,-500.0,0.00021723,2]
[349691850,1737377486281,-500.0,0.00021723,2]
[349691851,1737377486291,-860.7,0.00021723,2]
[349691852,1737377486300,-746.27,0.00021723,2]
[349691853,1737377486310,-500.0,0.00021723,2]
[349691854,1737377486320,-500.0,0.00021723,2]
[349691855,1737377486330,-656.76,0.00021723,2]
[349691856,1737377486339,-500.0,0.00021723,2]
[349691857,1737377486348,-500.0,0.00021723,2]
[349691858,1737377486357,-844.35,0.00021723,2]
[349691859,1737377486366,-500.0,0.00021723,2]
[349691860,1737377486375,-500.0,0.00021723,2]
[349691861,1737377486384,-500.0,0.00021723,2]
[349691862,1737377486394,-554.98,0.00021723,2]
[349691863,1737377486402,-706.13,0.00021723,2]
[349691864,1737377486412,-500.0,0.00021723,2]
[349691865,1737377486421,-500.0,0.00021723,2]
[349691866,1737377486431,-700.5,0.00021723,2]
[349691867,1737377486440,-817.82,0.00021723,2]
[349691868,1737377486450,-500.0,0.00021723,2]
[349691869,1737377486459,-840.73,0.00021723,2]
[349691870,1737377486469,-978.26,0.00021723,2]
[349691871,1737377486478,-151.0,0.00021723,2]
[349691872,1737377486488,-807.37,0.00021723,2]
[349691873,1737377486497,-535.23,0.00021723,2]
[349691874,1737377486506,-911.36,0.00021723,2]
[349691875,1737377486516,-151.0,0.00021723,2]
[349691876,1737377486526,-151.0,0.00021723,2]
[349691877,1737377486538,-918.51,0.00021723,2]
[349691878,1737377486547,-500.0,0.00021723,2]
[349691879,1737377486557,-761.42,0.00021723,2]
[349691880,1737377486566,-500.0,0.00021723,2]
[349691881,1737377486575,-2935.79,0.00021723,2]
[349691882,1737377486584,-500.0,0.00021723,2]
[349691883,1737377486594,-4234.6,0.00021723,2]
[349691884,1737377486603,-766.29,0.00021723,2]
[349691885,1737377486613,-727.87,0.00021723,2]
[349691886,1737377486623,-3864.35,0.00021723,2]
[349691887,1737377486633,-500.0,0.00021723,2]
[349691888,1737377486643,-500.0,0.00021723,2]
[349691889,1737377486653,-1299.27,0.00021723,2]
[349691890,1737377486662,-3588.13,0.00021723,2]
[349691891,1737377486672,-2046.38,0.00021723,2]
[349691892,1737377486681,-1932.2,0.00021723,2]
[349691893,1737377486691,-576.23,0.00021723,2]
[349691894,1737377486700,-1757.51,0.00021723,2]
[349691895,1737377486709,-1791.29,0.00021723,2]
[349691896,1737377486718,-2156.53,0.00021723,2]
[349691897,1737377486728,-2141.05,0.00021723,2]
[349691898,1737377486737,-1660.42,0.00021723,2]
[349691899,1737377486747,-1133.61,0.00021723,2]
[349691900,1737377486757,-555.92,0.00021723,2]
[349691901,1737377486768,-2180.96,0.00021723,2]
[349691902,1737377486777,-645.51,0.00021723,2]
[349691903,1737377486790,-561.67,0.00021723,2]
[349691904,1737377486800,-2173.11,0.00021723,2]
[349691905,1737377486810,-500.0,0.00021723,2]
[349691906,1737377486819,-1564.48,0.00021723,2]
[349691907,1737377486829,-500.0,0.00021723,2]
[349691908,1737377486839,-1133.54,0.00021723,2]
[349691909,1737377486849,-1145.98,0.00021723,2]
[349691910,1737377486859,-500.0,0.00021723,2]
[349691911,1737377486868,-752.83,0.00021723,2]
[349691912,1737377486878,-500.0,0.00021723,2]
[349691913,1737377486887,-500.0,0.00021723,2]
[349691914,1737377486897,-560.53,0.00021723,2]
[349691915,1737377486907,-766.9,0.00021723,2]
[349691916,1737377486916,-500.0,0.00021723,2]
[349691917,1737377486926,-500.0,0.00021723,2]
[349691918,1737377486936,-660.28,0.00021723,2]
[349691919,1737377486945,-943.53,0.00021723,2]
[349691920,1737377486955,-1337.38,0.00021723,2]
[349691921,1737377486964,-771.84,0.00021723,2]
[349691922,1737377486975,-500.0,0.00021723,2]
[349691923,1737377486985,-500.0,0.00021723,2]
[349691924,1737377486995,-1005.87,0.00021723,2]
[349691925,1737377487005,-1060.85,0.00021723,2]
[349691926,1737377487015,-500.0,0.00021723,2]
[349691927,1737377487025,-500.0,0.00021723,2]
[349691928,1737377487042,-980.61,0.00021723,2]
[349691929,1737377487052,-874.79,0.00021723,2]
[349691930,1737377487061,-1402.18,0.00021723,2]
[349691931,1737377487071,-500.0,0.00021723,2]
[349691932,1737377487082,-1129.67,0.00021723,2]
[349691933,1737377487092,-535.06,0.00021723,2]
[349691934,1737377487102,-2752.84,0.00021723,2]
[349691935,1737377487111,-796.22647468,0.00021726,2]
[349691936,1737377487120,-4895.7949798,0.00021728,2]
[349691937,1737377487130,-1877.19165488,0.00021728,2]
[349691938,1737377487139,-1707.56801582,0.00021729,2]
[349691939,1737377487148,-4984.0142235,0.00021729,2]
[349691940,1737377487158,-406.59222629,0.0002173,2]
[349691941,1737377487167,-595.75317645,0.00021731,2]
[349691942,1737377487176,-1707.56801583,0.00021733,2]
[349691943,1737377487186,-5027.58515096,0.00021736,2]
[349691944,1737377487196,-796.22647468,0.00021736,2]
[349691945,1737377487207,-150.0,0.00021739,2]
[349691946,1737377487216,-560.550835,0.00021742,2]
[349691947,1737377487226,-1877.19165487,0.00021744,2]
[349691948,1737377487236,-3734.02626157,0.00021745,2]
[349691949,1737377487245,-69153.83133446,0.00021746,2]
[349691950,1737377487254,-1877.19165488,0.00021746,2]
[349691951,1737377487264,-204.71864207,0.00021746,3]
[349691952,1737377487274,-16961.12921819,0.00021747,2]
[349691953,1737377487708,-1636.56662,0.00021747,2]
[349691954,1737377487720,-454.04595973,0.00021747,2]
[349691955,1737377487731,-12144.78468452,0.00021747,2]
[349691956,1737377487767,-54278.99231113,0.00021747,2]
[349691957,1737377487777,-1744.25733318,0.00021747,2]
[349691958,1737377487789,-1707.56801583,0.00021747,2]
[349691959,1737377487800,-40529.67885007,0.00021748,2]
[349691960,1737377487810,-85475.51879357,0.00021749,2]
[349691961,1737377487820,-595.75317645,0.00021752,2]
[349691962,1737377487830,-1306.92150708,0.00021753,2]
[349691963,1737377487839,-4895.7949798,0.00021753,2]
[349691964,1737377487849,-650.77714006,0.00021754,2]
[349691965,1737377487859,-40529.67885007,0.00021755,2]
[349691966,1737377487870,-2513.79257548,0.00021755,2]
[349691967,1737377487880,-560.55083479,0.00021758,2]
[349691968,1737377487889,-61442.45956169,0.00021758,2]
[349691969,1737377487899,-375.86410034,0.00021764,2]
[349691970,1737377487908,-5027.58515096,0.00021768,2]
[349691971,1737377487918,-10571.19962537,0.00021769,2]
[349691972,1737377487927,-200.0,0.00021769,2]
[349691973,1737377487937,-200.0,0.00021769,2]
[349691974,1737377487947,-938.59582744,0.00021771,2]
[349691975,1737377487957,-1707.56801583,0.00021772,2]
[349691976,1737377487967,-4895.7949798,0.00021774,2]
[349691977,1737377487976,-1877.19165487,0.00021774,2]
[349691978,1737377487985,-250.41931399,0.00021776,2]
[349691979,1737377487995,-250.41931399,0.00021777,2]
[349691980,1737377488004,-150.0,0.00021777,4]
[349691981,1737377488014,-1877.19165488,0.00021777,2]
[349691982,1737377488025,-2513.79257548,0.00021778,2]
[349691983,1737377488040,-595.75317645,0.00021783,2]
[349691984,1737377488050,-853.78400792,0.00021784,2]
[349691985,1737377488059,-2513.79257548,0.00021784,2]
[349691986,1737377488070,-650.77714006,0.00021785,2]
[349691987,1737377488079,-1877.19165487,0.00021785,2]
[349691988,1737377488090,-560.550835,0.00021786,2]
[349691989,1737377488101,-4984.0142235,0.00021788,2]
[349691990,1737377488110,-1707.56801582,0.00021788,2]
[349691991,1737377488120,-5027.58515096,0.00021789,2]
[349691992,1737377488129,-250.41931399,0.00021792,2]
[349691993,1737377488139,-938.59582744,0.00021794,2]
[349691994,1737377488149,-560.550835,0.00021798,2]
[349691995,1737377488159,-61442.45956169,0.00021799,2]
[349691996,1737377488168,-796.22647468,0.00021799,2]
[349691997,1737377488178,-69153.83133446,0.000218,2]
[349691998,1737377488188,-877.0,0.000218,7]
[349691999,1737377488198,-24774.75,0.000218,2]
[349692000,1737377488207,-24774.75,0.000218,2]
[349692001,1737377488217,-24774.75,0.000218,2]
[349692002,1737377488226,-24774.75,0.000218,2]
[349692003,1737377488235,-24774.75,0.000218,2]
[349692004,1737377488246,-24774.75,0.000218,2]
[349692005,1737377488255,-24774.75,0.000218,2]
[349692006,1737377488264,-24774.75,0.000218,2]
[349692007,1737377488274,-151.0,0.000218,2]
[349692008,1737377488287,-151.0,0.000218,2]
[349692009,1737377488297,-151.0,0.000218,2]
[349692010,1737377488306,-467.54319803,0.000218,2]
[349692011,1737377488316,-151.0,0.000218,2]
[349692012,1737377488326,-6341.91339531,0.000218,2]
[349692013,1737377488335,-168.98,0.000218,2]
[349692014,1737377488345,-1707.56801583,0.00021801,2]
[349692015,1737377488354,-69153.83133446,0.00021801,2]
[349692016,1737377488363,-1877.19165487,0.00021802,2]
[349692017,1737377488373,-201.24,0.00021804,2]
[349692018,1737377488383,-40529.67885007,0.00021804,2]
[349692019,1737377488393,-3734.02626157,0.00021805,2]
[349692020,1737377488403,-650.77714006,0.00021806,2]
[349692021,1737377488412,-200.0,0.00021806,2]
[349692022,1737377488421,-938.59582744,0.00021808,2]
[349692023,1737377488430,-40529.67885007,0.0002181,2]
[349692024,1737377488440,-4895.7949798,0.0002181,2]
[349692025,1737377488449,-150.0,0.00021812,2]
[349692026,1737377488458,-10571.19962537,0.00021814,2]
[349692027,1737377488467,-150.0,0.00021814,2]
[349692028,1737377488476,-796.22647468,0.00021815,2]
[349692029,1737377488486,-151.0,0.00021815,2]
[349692030,1737377488495,-151.0,0.00021815,2]
[349692031,1737377488505,-151.0,0.00021815,2]
[349692032,1737377488514,-172.268715,0.00021815,2]
[349692033,1737377488523,-200.0,0.00021815,2]
[349692034,1737377488535,-507.11209549,0.00021816,2]
[349692035,1737377488544,-1239.02,0.00021816,2]
[349692036,1737377488553,-796.29,0.00021816,2]
[349692037,1737377488563,-500.0,0.00021816,2]
[349692038,1737377488572,-500.0,0.00021816,2]
[349692039,1737377488582,-777.37,0.00021816,2]
[349692040,1737377488592,-500.0,0.00021816,2]
[349692041,1737377488601,-1097.39,0.00021816,2]
[349692042,1737377488611,-500.0,0.00021816,2]
[349692043,1737377488621,-500.0,0.00021816,2]
[349692044,1737377488630,-983.96,0.00021816,2]
[349692045,1737377488640,-1933.71,0.00021816,2]
[349692046,1737377488650,-1142.21,0.00021816,2]
[349692047,1737377488659,-1877.19165487,0.00021818,2]
[349692048,1737377488669,-61442.45956169,0.00021823,2]
[349692049,1737377488679,-500.0,0.00021823,2]
[349692050,1737377488689,-500.0,0.00021824,2]
[349692051,1737377488699,-500.0,0.00021824,2]
[349692052,1737377488708,-3734.02626157,0.00021826,2]
[349692053,1737377488718,-1707.56801582,0.00021826,2]
[349692054,1737377488727,-560.55083479,0.00021826,2]
[349692055,1737377488736,-5027.58515096,0.00021827,2]
[349692056,1737377488746,-4895.7949798,0.00021827,2]
[349692057,1737377488756,-560.55083479,0.00021829,2]
[349692058,1737377488765,-406.59222629,0.00021829,2]
[349692059,1737377488774,-10571.19962537,0.0002183,2]
[349692060,1737377488784,-85475.51879357,0.00021831,2]
[349692061,1737377488793,-406.59222629,0.00021831,2]
[349692062,1737377488803,-1877.19165488,0.00021833,2]
[349692063,1737377488812,-1707.56801582,0.00021835,2]
[349692064,1737377488826,-796.22647468,0.00021836,2]
[349692065,1737377488836,-560.550835,0.00021836,2]
[349692066,1737377488845,-2513.79257548,0.00021836,2]
[349692067,1737377488855,-1744.25733318,0.00021837,2]
[349692068,1737377488865,-61442.45956169,0.00021837,2]
[349692069,1737377488874,-1744.25733318,0.0002184,2]
[349692070,1737377488884,-560.550835,0.00021841,2]
[349692071,1737377488893,-853.78400792,0.00021841,2]
[349692072,1737377488903,-1707.56801582,0.00021841,2]
[349692073,1737377488912,-938.59582744,0.00021843,2]
[349692074,1737377488921,-4984.0142235,0.00021844,2]
[349692075,1737377488932,-699.38139595,0.00021845,2]
[349692076,1737377488941,-69153.83133446,0.00021846,2]
[349692077,1737377488950,-69153.83133446,0.00021846,2]
[349692078,1737377488959,-250.41931399,0.00021848,2]
[349692079,1737377488969,-560.55083479,0.00021849,2]
[349692080,1737377488978,-3734.02626157,0.00021849,2]
[349692081,1737377488987,-467.54319802,0.0002185,2]
[349692082,1737377488997,-6341.91339529,0.0002185,2]
[349692083,1737377489131,-250.41931399,0.00021852,2]
[349692084,1737377489141,-1306.92150708,0.00021853,2]
[349692085,1737377489150,-595.75317645,0.00021854,2]
[349692086,1737377489161,-150.0,0.00021854,2]
[349692087,1737377489171,-650.77714006,0.00021855,2]
[349692088,1737377489180,-200.0,0.00021856,2]
[349692089,1737377489189,-853.78400792,0.00021856,2]
[349692090,1737377489198,-595.75317645,0.00021856,2]
[349692091,1737377489207,-200.0,0.00021856,2]
[349692092,1737377489216,-2513.79257548,0.00021857,2]
[349692093,1737377489225,-85475.51879357,0.0002186,2]
[349692094,1737377489235,-150.0,0.00021861,2]
[349692095,1737377489244,-4984.0142235,0.00021862,2]
[349692096,1737377489254,-938.59582744,0.00021862,2]
[349692097,1737377489263,-1744.25733318,0.00021863,2]
[349692098,1737377489272,-61442.45956169,0.00021864,2]
[349692099,1737377489281,-4984.0142235,0.00021866,2]
[349692100,1737377489294,-200.0,0.00021868,2]
[349692101,1737377489304,-3734.02626157,0.00021868,2]
[349692102,1737377489313,-853.78400792,0.00021869,2]
[349692103,1737377489322,-1877.19165488,0.0002187,2]
[349692104,1737377489331,-406.59222629,0.00021875,2]
[349692105,1737377489340,-5800.0,0.00021875,2]
[349692106,1737377489349,-5027.58515096,0.00021876,2]
[349692107,1737377489358,-1000.0,0.00021877,2]
[349692108,1737377489368,-406.59222629,0.00021878,2]
[349692109,1737377489377,-150.0,0.00021879,4]
[349692110,1737377489386,-10571.19962537,0.00021881,2]
[349692111,1737377489395,-5800.0,0.00021883,2]
[349692112,1737377489404,-1744.25733318,0.00021883,2]
[349692113,1737377489414,-560.55083479,0.00021885,2]
[349692114,1737377489423,-1306.92150708,0.00021887,2]
[349692115,1737377489432,-1306.92150708,0.00021888,2]
[349692116,1737377489441,-650.77714006,0.00021888,2]
[349692117,1737377489450,-853.78400792,0.00021889,2]
[349692118,1737377489460,-2001.0447,0.0002189,2]
[349692119,1737377489469,-2000.0,0.0002189,2]
[349692120,1737377489478,-1000.0,0.0002189,2]
[349692121,1737377489488,-1000.0,0.0002189,2]
[349692122,1737377489498,-1000.0,0.0002189,2]
[349692123,1737377489507,-1000.0,0.0002189,2]
[349692124,1737377489517,-1000.0,0.0002189,2]
[349692125,1737377489527,-1000.0,0.0002189,2]
[349692126,1737377489540,-1000.0,0.0002189,2]
[349692127,1737377489549,-1000.0,0.0002189,2]
[349692128,1737377489559,-1000.0,0.0002189,2]
[349692129,1737377489568,-438.867,0.0002189,2]
[349692130,1737377489578,-500.0,0.0002189,2]
[349692131,1737377489587,-40529.67885007,0.00021891,2]
[349692132,1737377489597,-5800.0,0.00021892,2]
[349692133,1737377489607,-1306.92150708,0.00021892,2]
[349692134,1737377489616,-200.0,0.00021892,2]
[349692135,1737377489625,-85475.51879357,0.00021893,2]
[349692136,1737377489635,-1707.56801583,0.00021897,2]
[349692137,1737377489644,-500.0,0.00021899,2]
[349692138,1737377489654,-10571.19962537,0.00021899,2]
[349692139,1737377489663,-1340.264107,0.000219,2]
[349692140,1737377489672,-161.27208987,0.000219,2]
[349692141,1737377489682,-31658.89619725,0.000219,2]
[349692142,1737377489691,-5800.0,0.000219,2]
[349692143,1737377489701,-723.0,0.000219,2]
[349692144,1737377489710,-506.24799734,0.000219,2]
[349692145,1737377489720,-301526.24092184,0.000219,4]
[349692146,1737377489729,-1340.5827597,0.000219,2]
[349692147,1737377489739,-806.54414129,0.000219,2]
[349692148,1737377489748,-806.54414117,0.000219,2]
[349692149,1737377489758,-806.54414117,0.000219,2]
[349692150,1737377489767,-806.54414117,0.000219,2]
[349692151,1737377489776,-806.54414117,0.000219,2]
[349692152,1737377489789,-806.54414117,0.000219,2]
[349692153,1737377489798,-467.54319802,0.000219,2]
[349692154,1737377489807,-806.54414117,0.000219,2]